{"text_format":"3","workbook":"xlsx","n_sheets":3,"sheets":["נתוני הפניות","מכירות חזויות ","תחזית משוקללת חודשית"],"not_rendered":{"charts":1,"defined_names":10},"read":"whole","date_system":"1900"}

{"sheet":"נתוני הפניות","index":0,"n_rows":9,"n_cols":10,"rows_kept":9,"merged":[[3,1,3,8]]}
[null,"שם החברה"]
[null,"מעקב מפורט אחר הפניות"]
[null,{"$f":"TODAY()","v":"2018-07-24"}]
[null,{"$f":"Company_Name","v":"שם החברה"},{"$nulls":7},"סודי"]
[null,"שם הפניה","איש קשר של הפניה","מקור \nהפניה","אזור \nהפניה","סוג \nהפניה","הזדמנות פוטנציאלית","סיכוי \nלמכירה","סגירת \nתחזית","תחזית \nמשוקללת"]
[null,"A.‎ Datum Corporation",{"$nulls":3},"אסטרטגית",{"v":300000,"d":"₪ 300,000.00"},{"v":0.9,"d":"90%"},"ינואר",{"$f":"IFERROR(IF(LeadData[סיכוי \nלמכירה]<>\"\",LeadData[סיכוי \nלמכירה]*LeadData[הזדמנות פוטנציאלית],\"\"),\"\")","v":{"v":270000,"d":"₪ 270,000.00"}}]
[null,"Adventure Works",{"$nulls":3},"אסטרטגית",{"v":200000,"d":"₪ 200,000.00"},{"v":0.1,"d":"10%"},"פברואר",{"$f":"IFERROR(IF(LeadData[סיכוי \nלמכירה]<>\"\",LeadData[סיכוי \nלמכירה]*LeadData[הזדמנות פוטנציאלית],\"\"),\"\")","v":{"v":20000,"d":"₪ 20,000.00"}}]
[null,"Alpine Ski House",{"$nulls":3},"טקטית",{"v":100000,"d":"₪ 100,000.00"},{"v":0.2,"d":"20%"},"מרץ",{"$f":"IFERROR(IF(LeadData[סיכוי \nלמכירה]<>\"\",LeadData[סיכוי \nלמכירה]*LeadData[הזדמנות פוטנציאלית],\"\"),\"\")","v":{"v":20000,"d":"₪ 20,000.00"}}]
[null,"סך הכל",{"$nulls":4},{"$f":"SUBTOTAL(109,LeadData[הזדמנות פוטנציאלית])","v":{"v":600000,"d":"₪ 600,000.00"}},null,null,{"$f":"SUBTOTAL(109,LeadData[תחזית \nמשוקללת])","v":{"v":310000,"d":"₪ 310,000.00"}}]

{"sheet":"מכירות חזויות ","index":1,"n_rows":21,"n_cols":14,"rows_kept":21,"merged":[[3,1,3,11],[3,12,3,13]]}
[null,{"$f":"Company_Name","v":"שם החברה"}]
[null,"מכירות חזויות"]
[null,{"$f":"TrackerDate","v":"2018-07-24"}]
[null,{"$f":"Company_Name","v":"שם החברה"},{"$nulls":10},"סודי"]
[null,"שם הפניה","תחזית \nינואר","תחזית \nפברואר","תחזית \nמרץ","תחזית \nאפריל","תחזית \nמאי","תחזית \nיוני","תחזית \nיולי","תחזית \nאוגוסט","תחזית \nספטמבר","תחזית \nאוקטובר","תחזית \nנובמבר","תחזית \nדצמבר"]
[null,{"$f":"IFERROR(IF(AND(LeadData[שם הפניה] <> \"\", ROW(ForecastedSales[שם הפניה])<>LastEntry),LeadData[שם הפניה], \"\"),\"\")","v":"A.‎ Datum Corporation"},{"$f":"IFERROR(IF(LeadData[סגירת \nתחזית] <>\"\",IF(LeadData[סגירת \nתחזית]= \"ינואר\",LeadData[תחזית \nמשוקללת],0),\"\"),\"\")","v":{"v":270000,"d":"₪ 270,000"}},{"$f":"IFERROR(IF(LeadData[סגירת \nתחזית] <>\"\",IF(LeadData[סגירת \nתחזית] = \"פברואר\",LeadData[תחזית \nמשוקללת],0),\"\"),\"\")","v":{"v":0,"d":"₪ 0"}},{"$f":"IFERROR(IF(LeadData[סגירת \nתחזית] <>\"\",IF(LeadData[סגירת \nתחזית] = \"מרץ\",LeadData[תחזית \nמשוקללת],0),\"\"),\"\")","v":{"v":0,"d":"₪ 0"}},{"$f":"IFERROR(IF(LeadData[סגירת \nתחזית] <>\"\",IF(LeadData[סגירת \nתחזית] = \"אפריל\",LeadData[תחזית \nמשוקללת],0),\"\"),\"\")","v":{"v":0,"d":"₪ 0"}},{"$f":"IFERROR(IF(LeadData[סגירת \nתחזית] <>\"\",IF(LeadData[סגירת \nתחזית] = \"מאי\",LeadData[תחזית \nמשוקללת],0),\"\"),\"\")","v":{"v":0,"d":"₪ 0"}},{"$f":"IFERROR(IF(LeadData[סגירת \nתחזית] <>\"\",IF(LeadData[סגירת \nתחזית] = \"יוני\",LeadData[תחזית \nמשוקללת],0),\"\"),\"\")","v":{"v":0,"d":"₪ 0"}},{"$f":"IFERROR(IF(LeadData[סגירת \nתחזית] <>\"\",IF(LeadData[סגירת \nתחזית] = \"יולי\",LeadData[תחזית \nמשוקללת],0),\"\"),\"\")","v":{"v":0,"d":"₪ 0"}},{"$f":"IFERROR(IF(LeadData[סגירת \nתחזית] <>\"\",IF(LeadData[סגירת \nתחזית] = \"אוגוסט\",LeadData[תחזית \nמשוקללת],0),\"\"),\"\")","v":{"v":0,"d":"₪ 0"}},{"$f":"IFERROR(IF(LeadData[סגירת \nתחזית] <>\"\",IF(LeadData[סגירת \nתחזית] = \"ספטמבר\",LeadData[תחזית \nמשוקללת],0),\"\"),\"\")","v":{"v":0,"d":"₪ 0"}},{"$f":"IFERROR(IF(LeadData[סגירת \nתחזית] <>\"\",IF(LeadData[סגירת \nתחזית] = \"אוקטובר\",LeadData[תחזית \nמשוקללת],0),\"\"),\"\")","v":{"v":0,"d":"₪ 0"}},{"$f":"IFERROR(IF(LeadData[סגירת \nתחזית] <>\"\",IF(LeadData[סגירת \nתחזית] = \"נובמבר\",LeadData[תחזית \nמשוקללת],0),\"\"),\"\")","v":{"v":0,"d":"₪ 0"}},{"$f":"IFERROR(IF(LeadData[סגירת \nתחזית] <>\"\",IF(LeadData[סגירת \nתחזית] = \"דצמבר\",LeadData[תחזית \nמשוקללת],0),\"\"),\"\")","v":{"v":0,"d":"₪ 0"}}]
[null,{"$f":"IFERROR(IF(AND(LeadData[שם הפניה] <> \"\", ROW(ForecastedSales[שם הפניה])<>LastEntry),LeadData[שם הפניה], \"\"),\"\")","v":"Adventure Works"},{"$f":"IFERROR(IF(LeadData[סגירת \nתחזית] <>\"\",IF(LeadData[סגירת \nתחזית]= \"ינואר\",LeadData[תחזית \nמשוקללת],0),\"\"),\"\")","v":{"v":0,"d":"₪ 0"}},{"$f":"IFERROR(IF(LeadData[סגירת \nתחזית] <>\"\",IF(LeadData[סגירת \nתחזית] = \"פברואר\",LeadData[תחזית \nמשוקללת],0),\"\"),\"\")","v":{"v":20000,"d":"₪ 20,000"}},{"$f":"IFERROR(IF(LeadData[סגירת \nתחזית] <>\"\",IF(LeadData[סגירת \nתחזית] = \"מרץ\",LeadData[תחזית \nמשוקללת],0),\"\"),\"\")","v":{"v":0,"d":"₪ 0"}},{"$f":"IFERROR(IF(LeadData[סגירת \nתחזית] <>\"\",IF(LeadData[סגירת \nתחזית] = \"אפריל\",LeadData[תחזית \nמשוקללת],0),\"\"),\"\")","v":{"v":0,"d":"₪ 0"}},{"$f":"IFERROR(IF(LeadData[סגירת \nתחזית] <>\"\",IF(LeadData[סגירת \nתחזית] = \"מאי\",LeadData[תחזית \nמשוקללת],0),\"\"),\"\")","v":{"v":0,"d":"₪ 0"}},{"$f":"IFERROR(IF(LeadData[סגירת \nתחזית] <>\"\",IF(LeadData[סגירת \nתחזית] = \"יוני\",LeadData[תחזית \nמשוקללת],0),\"\"),\"\")","v":{"v":0,"d":"₪ 0"}},{"$f":"IFERROR(IF(LeadData[סגירת \nתחזית] <>\"\",IF(LeadData[סגירת \nתחזית] = \"יולי\",LeadData[תחזית \nמשוקללת],0),\"\"),\"\")","v":{"v":0,"d":"₪ 0"}},{"$f":"IFERROR(IF(LeadData[סגירת \nתחזית] <>\"\",IF(LeadData[סגירת \nתחזית] = \"אוגוסט\",LeadData[תחזית \nמשוקללת],0),\"\"),\"\")","v":{"v":0,"d":"₪ 0"}},{"$f":"IFERROR(IF(LeadData[סגירת \nתחזית] <>\"\",IF(LeadData[סגירת \nתחזית] = \"ספטמבר\",LeadData[תחזית \nמשוקללת],0),\"\"),\"\")","v":{"v":0,"d":"₪ 0"}},{"$f":"IFERROR(IF(LeadData[סגירת \nתחזית] <>\"\",IF(LeadData[סגירת \nתחזית] = \"אוקטובר\",LeadData[תחזית \nמשוקללת],0),\"\"),\"\")","v":{"v":0,"d":"₪ 0"}},{"$f":"IFERROR(IF(LeadData[סגירת \nתחזית] <>\"\",IF(LeadData[סגירת \nתחזית] = \"נובמבר\",LeadData[תחזית \nמשוקללת],0),\"\"),\"\")","v":{"v":0,"d":"₪ 0"}},{"$f":"IFERROR(IF(LeadData[סגירת \nתחזית] <>\"\",IF(LeadData[סגירת \nתחזית] = \"דצמבר\",LeadData[תחזית \nמשוקללת],0),\"\"),\"\")","v":{"v":0,"d":"₪ 0"}}]
[null,{"$f":"IFERROR(IF(AND(LeadData[שם הפניה] <> \"\", ROW(ForecastedSales[שם הפניה])<>LastEntry),LeadData[שם הפניה], \"\"),\"\")","v":"Alpine Ski House"},{"$f":"IFERROR(IF(LeadData[סגירת \nתחזית] <>\"\",IF(LeadData[סגירת \nתחזית]= \"ינואר\",LeadData[תחזית \nמשוקללת],0),\"\"),\"\")","v":{"v":0,"d":"₪ 0"}},{"$f":"IFERROR(IF(LeadData[סגירת \nתחזית] <>\"\",IF(LeadData[סגירת \nתחזית] = \"פברואר\",LeadData[תחזית \nמשוקללת],0),\"\"),\"\")","v":{"v":0,"d":"₪ 0"}},{"$f":"IFERROR(IF(LeadData[סגירת \nתחזית] <>\"\",IF(LeadData[סגירת \nתחזית] = \"מרץ\",LeadData[תחזית \nמשוקללת],0),\"\"),\"\")","v":{"v":20000,"d":"₪ 20,000"}},{"$f":"IFERROR(IF(LeadData[סגירת \nתחזית] <>\"\",IF(LeadData[סגירת \nתחזית] = \"אפריל\",LeadData[תחזית \nמשוקללת],0),\"\"),\"\")","v":{"v":0,"d":"₪ 0"}},{"$f":"IFERROR(IF(LeadData[סגירת \nתחזית] <>\"\",IF(LeadData[סגירת \nתחזית] = \"מאי\",LeadData[תחזית \nמשוקללת],0),\"\"),\"\")","v":{"v":0,"d":"₪ 0"}},{"$f":"IFERROR(IF(LeadData[סגירת \nתחזית] <>\"\",IF(LeadData[סגירת \nתחזית] = \"יוני\",LeadData[תחזית \nמשוקללת],0),\"\"),\"\")","v":{"v":0,"d":"₪ 0"}},{"$f":"IFERROR(IF(LeadData[סגירת \nתחזית] <>\"\",IF(LeadData[סגירת \nתחזית] = \"יולי\",LeadData[תחזית \nמשוקללת],0),\"\"),\"\")","v":{"v":0,"d":"₪ 0"}},{"$f":"IFERROR(IF(LeadData[סגירת \nתחזית] <>\"\",IF(LeadData[סגירת \nתחזית] = \"אוגוסט\",LeadData[תחזית \nמשוקללת],0),\"\"),\"\")","v":{"v":0,"d":"₪ 0"}},{"$f":"IFERROR(IF(LeadData[סגירת \nתחזית] <>\"\",IF(LeadData[סגירת \nתחזית] = \"ספטמבר\",LeadData[תחזית \nמשוקללת],0),\"\"),\"\")","v":{"v":0,"d":"₪ 0"}},{"$f":"IFERROR(IF(LeadData[סגירת \nתחזית] <>\"\",IF(LeadData[סגירת \nתחזית] = \"אוקטובר\",LeadData[תחזית \nמשוקללת],0),\"\"),\"\")","v":{"v":0,"d":"₪ 0"}},{"$f":"IFERROR(IF(LeadData[סגירת \nתחזית] <>\"\",IF(LeadData[סגירת \nתחזית] = \"נובמבר\",LeadData[תחזית \nמשוקללת],0),\"\"),\"\")","v":{"v":0,"d":"₪ 0"}},{"$f":"IFERROR(IF(LeadData[סגירת \nתחזית] <>\"\",IF(LeadData[סגירת \nתחזית] = \"דצמבר\",LeadData[תחזית \nמשוקללת],0),\"\"),\"\")","v":{"v":0,"d":"₪ 0"}}]
[null,{"$f":"IFERROR(IF(AND(LeadData[שם הפניה] <> \"\", ROW(ForecastedSales[שם הפניה])<>LastEntry),LeadData[שם הפניה], \"\"),\"\")","v":""},{"$f":"IFERROR(IF(LeadData[סגירת \nתחזית] <>\"\",IF(LeadData[סגירת \nתחזית]= \"ינואר\",LeadData[תחזית \nמשוקללת],0),\"\"),\"\")","v":""},{"$f":"IFERROR(IF(LeadData[סגירת \nתחזית] <>\"\",IF(LeadData[סגירת \nתחזית] = \"פברואר\",LeadData[תחזית \nמשוקללת],0),\"\"),\"\")","v":""},{"$f":"IFERROR(IF(LeadData[סגירת \nתחזית] <>\"\",IF(LeadData[סגירת \nתחזית] = \"מרץ\",LeadData[תחזית \nמשוקללת],0),\"\"),\"\")","v":""},{"$f":"IFERROR(IF(LeadData[סגירת \nתחזית] <>\"\",IF(LeadData[סגירת \nתחזית] = \"אפריל\",LeadData[תחזית \nמשוקללת],0),\"\"),\"\")","v":""},{"$f":"IFERROR(IF(LeadData[סגירת \nתחזית] <>\"\",IF(LeadData[סגירת \nתחזית] = \"מאי\",LeadData[תחזית \nמשוקללת],0),\"\"),\"\")","v":""},{"$f":"IFERROR(IF(LeadData[סגירת \nתחזית] <>\"\",IF(LeadData[סגירת \nתחזית] = \"יוני\",LeadData[תחזית \nמשוקללת],0),\"\"),\"\")","v":""},{"$f":"IFERROR(IF(LeadData[סגירת \nתחזית] <>\"\",IF(LeadData[סגירת \nתחזית] = \"יולי\",LeadData[תחזית \nמשוקללת],0),\"\"),\"\")","v":""},{"$f":"IFERROR(IF(LeadData[סגירת \nתחזית] <>\"\",IF(LeadData[סגירת \nתחזית] = \"אוגוסט\",LeadData[תחזית \nמשוקללת],0),\"\"),\"\")","v":""},{"$f":"IFERROR(IF(LeadData[סגירת \nתחזית] <>\"\",IF(LeadData[סגירת \nתחזית] = \"ספטמבר\",LeadData[תחזית \nמשוקללת],0),\"\"),\"\")","v":""},{"$f":"IFERROR(IF(LeadData[סגירת \nתחזית] <>\"\",IF(LeadData[סגירת \nתחזית] = \"אוקטובר\",LeadData[תחזית \nמשוקללת],0),\"\"),\"\")","v":""},{"$f":"IFERROR(IF(LeadData[סגירת \nתחזית] <>\"\",IF(LeadData[סגירת \nתחזית] = \"נובמבר\",LeadData[תחזית \nמשוקללת],0),\"\"),\"\")","v":""},{"$f":"IFERROR(IF(LeadData[סגירת \nתחזית] <>\"\",IF(LeadData[סגירת \nתחזית] = \"דצמבר\",LeadData[תחזית \nמשוקללת],0),\"\"),\"\")","v":""}]
[null,{"$f":"IFERROR(IF(AND(LeadData[שם הפניה] <> \"\", ROW(ForecastedSales[שם הפניה])<>LastEntry),LeadData[שם הפניה], \"\"),\"\")","v":""},{"$f":"IFERROR(IF(LeadData[סגירת \nתחזית] <>\"\",IF(LeadData[סגירת \nתחזית]= \"ינואר\",LeadData[תחזית \nמשוקללת],0),\"\"),\"\")","v":""},{"$f":"IFERROR(IF(LeadData[סגירת \nתחזית] <>\"\",IF(LeadData[סגירת \nתחזית] = \"פברואר\",LeadData[תחזית \nמשוקללת],0),\"\"),\"\")","v":""},{"$f":"IFERROR(IF(LeadData[סגירת \nתחזית] <>\"\",IF(LeadData[סגירת \nתחזית] = \"מרץ\",LeadData[תחזית \nמשוקללת],0),\"\"),\"\")","v":""},{"$f":"IFERROR(IF(LeadData[סגירת \nתחזית] <>\"\",IF(LeadData[סגירת \nתחזית] = \"אפריל\",LeadData[תחזית \nמשוקללת],0),\"\"),\"\")","v":""},{"$f":"IFERROR(IF(LeadData[סגירת \nתחזית] <>\"\",IF(LeadData[סגירת \nתחזית] = \"מאי\",LeadData[תחזית \nמשוקללת],0),\"\"),\"\")","v":""},{"$f":"IFERROR(IF(LeadData[סגירת \nתחזית] <>\"\",IF(LeadData[סגירת \nתחזית] = \"יוני\",LeadData[תחזית \nמשוקללת],0),\"\"),\"\")","v":""},{"$f":"IFERROR(IF(LeadData[סגירת \nתחזית] <>\"\",IF(LeadData[סגירת \nתחזית] = \"יולי\",LeadData[תחזית \nמשוקללת],0),\"\"),\"\")","v":""},{"$f":"IFERROR(IF(LeadData[סגירת \nתחזית] <>\"\",IF(LeadData[סגירת \nתחזית] = \"אוגוסט\",LeadData[תחזית \nמשוקללת],0),\"\"),\"\")","v":""},{"$f":"IFERROR(IF(LeadData[סגירת \nתחזית] <>\"\",IF(LeadData[סגירת \nתחזית] = \"ספטמבר\",LeadData[תחזית \nמשוקללת],0),\"\"),\"\")","v":""},{"$f":"IFERROR(IF(LeadData[סגירת \nתחזית] <>\"\",IF(LeadData[סגירת \nתחזית] = \"אוקטובר\",LeadData[תחזית \nמשוקללת],0),\"\"),\"\")","v":""},{"$f":"IFERROR(IF(LeadData[סגירת \nתחזית] <>\"\",IF(LeadData[סגירת \nתחזית] = \"נובמבר\",LeadData[תחזית \nמשוקללת],0),\"\"),\"\")","v":""},{"$f":"IFERROR(IF(LeadData[סגירת \nתחזית] <>\"\",IF(LeadData[סגירת \nתחזית] = \"דצמבר\",LeadData[תחזית \nמשוקללת],0),\"\"),\"\")","v":""}]
[null,{"$f":"IFERROR(IF(AND(LeadData[שם הפניה] <> \"\", ROW(ForecastedSales[שם הפניה])<>LastEntry),LeadData[שם הפניה], \"\"),\"\")","v":""},{"$f":"IFERROR(IF(LeadData[סגירת \nתחזית] <>\"\",IF(LeadData[סגירת \nתחזית]= \"ינואר\",LeadData[תחזית \nמשוקללת],0),\"\"),\"\")","v":""},{"$f":"IFERROR(IF(LeadData[סגירת \nתחזית] <>\"\",IF(LeadData[סגירת \nתחזית] = \"פברואר\",LeadData[תחזית \nמשוקללת],0),\"\"),\"\")","v":""},{"$f":"IFERROR(IF(LeadData[סגירת \nתחזית] <>\"\",IF(LeadData[סגירת \nתחזית] = \"מרץ\",LeadData[תחזית \nמשוקללת],0),\"\"),\"\")","v":""},{"$f":"IFERROR(IF(LeadData[סגירת \nתחזית] <>\"\",IF(LeadData[סגירת \nתחזית] = \"אפריל\",LeadData[תחזית \nמשוקללת],0),\"\"),\"\")","v":""},{"$f":"IFERROR(IF(LeadData[סגירת \nתחזית] <>\"\",IF(LeadData[סגירת \nתחזית] = \"מאי\",LeadData[תחזית \nמשוקללת],0),\"\"),\"\")","v":""},{"$f":"IFERROR(IF(LeadData[סגירת \nתחזית] <>\"\",IF(LeadData[סגירת \nתחזית] = \"יוני\",LeadData[תחזית \nמשוקללת],0),\"\"),\"\")","v":""},{"$f":"IFERROR(IF(LeadData[סגירת \nתחזית] <>\"\",IF(LeadData[סגירת \nתחזית] = \"יולי\",LeadData[תחזית \nמשוקללת],0),\"\"),\"\")","v":""},{"$f":"IFERROR(IF(LeadData[סגירת \nתחזית] <>\"\",IF(LeadData[סגירת \nתחזית] = \"אוגוסט\",LeadData[תחזית \nמשוקללת],0),\"\"),\"\")","v":""},{"$f":"IFERROR(IF(LeadData[סגירת \nתחזית] <>\"\",IF(LeadData[סגירת \nתחזית] = \"ספטמבר\",LeadData[תחזית \nמשוקללת],0),\"\"),\"\")","v":""},{"$f":"IFERROR(IF(LeadData[סגירת \nתחזית] <>\"\",IF(LeadData[סגירת \nתחזית] = \"אוקטובר\",LeadData[תחזית \nמשוקללת],0),\"\"),\"\")","v":""},{"$f":"IFERROR(IF(LeadData[סגירת \nתחזית] <>\"\",IF(LeadData[סגירת \nתחזית] = \"נובמבר\",LeadData[תחזית \nמשוקללת],0),\"\"),\"\")","v":""},{"$f":"IFERROR(IF(LeadData[סגירת \nתחזית] <>\"\",IF(LeadData[סגירת \nתחזית] = \"דצמבר\",LeadData[תחזית \nמשוקללת],0),\"\"),\"\")","v":""}]
[null,{"$f":"IFERROR(IF(AND(LeadData[שם הפניה] <> \"\", ROW(ForecastedSales[שם הפניה])<>LastEntry),LeadData[שם הפניה], \"\"),\"\")","v":""},{"$f":"IFERROR(IF(LeadData[סגירת \nתחזית] <>\"\",IF(LeadData[סגירת \nתחזית]= \"ינואר\",LeadData[תחזית \nמשוקללת],0),\"\"),\"\")","v":""},{"$f":"IFERROR(IF(LeadData[סגירת \nתחזית] <>\"\",IF(LeadData[סגירת \nתחזית] = \"פברואר\",LeadData[תחזית \nמשוקללת],0),\"\"),\"\")","v":""},{"$f":"IFERROR(IF(LeadData[סגירת \nתחזית] <>\"\",IF(LeadData[סגירת \nתחזית] = \"מרץ\",LeadData[תחזית \nמשוקללת],0),\"\"),\"\")","v":""},{"$f":"IFERROR(IF(LeadData[סגירת \nתחזית] <>\"\",IF(LeadData[סגירת \nתחזית] = \"אפריל\",LeadData[תחזית \nמשוקללת],0),\"\"),\"\")","v":""},{"$f":"IFERROR(IF(LeadData[סגירת \nתחזית] <>\"\",IF(LeadData[סגירת \nתחזית] = \"מאי\",LeadData[תחזית \nמשוקללת],0),\"\"),\"\")","v":""},{"$f":"IFERROR(IF(LeadData[סגירת \nתחזית] <>\"\",IF(LeadData[סגירת \nתחזית] = \"יוני\",LeadData[תחזית \nמשוקללת],0),\"\"),\"\")","v":""},{"$f":"IFERROR(IF(LeadData[סגירת \nתחזית] <>\"\",IF(LeadData[סגירת \nתחזית] = \"יולי\",LeadData[תחזית \nמשוקללת],0),\"\"),\"\")","v":""},{"$f":"IFERROR(IF(LeadData[סגירת \nתחזית] <>\"\",IF(LeadData[סגירת \nתחזית] = \"אוגוסט\",LeadData[תחזית \nמשוקללת],0),\"\"),\"\")","v":""},{"$f":"IFERROR(IF(LeadData[סגירת \nתחזית] <>\"\",IF(LeadData[סגירת \nתחזית] = \"ספטמבר\",LeadData[תחזית \nמשוקללת],0),\"\"),\"\")","v":""},{"$f":"IFERROR(IF(LeadData[סגירת \nתחזית] <>\"\",IF(LeadData[סגירת \nתחזית] = \"אוקטובר\",LeadData[תחזית \nמשוקללת],0),\"\"),\"\")","v":""},{"$f":"IFERROR(IF(LeadData[סגירת \nתחזית] <>\"\",IF(LeadData[סגירת \nתחזית] = \"נובמבר\",LeadData[תחזית \nמשוקללת],0),\"\"),\"\")","v":""},{"$f":"IFERROR(IF(LeadData[סגירת \nתחזית] <>\"\",IF(LeadData[סגירת \nתחזית] = \"דצמבר\",LeadData[תחזית \nמשוקללת],0),\"\"),\"\")","v":""}]
[null,{"$f":"IFERROR(IF(AND(LeadData[שם הפניה] <> \"\", ROW(ForecastedSales[שם הפניה])<>LastEntry),LeadData[שם הפניה], \"\"),\"\")","v":""},{"$f":"IFERROR(IF(LeadData[סגירת \nתחזית] <>\"\",IF(LeadData[סגירת \nתחזית]= \"ינואר\",LeadData[תחזית \nמשוקללת],0),\"\"),\"\")","v":""},{"$f":"IFERROR(IF(LeadData[סגירת \nתחזית] <>\"\",IF(LeadData[סגירת \nתחזית] = \"פברואר\",LeadData[תחזית \nמשוקללת],0),\"\"),\"\")","v":""},{"$f":"IFERROR(IF(LeadData[סגירת \nתחזית] <>\"\",IF(LeadData[סגירת \nתחזית] = \"מרץ\",LeadData[תחזית \nמשוקללת],0),\"\"),\"\")","v":""},{"$f":"IFERROR(IF(LeadData[סגירת \nתחזית] <>\"\",IF(LeadData[סגירת \nתחזית] = \"אפריל\",LeadData[תחזית \nמשוקללת],0),\"\"),\"\")","v":""},{"$f":"IFERROR(IF(LeadData[סגירת \nתחזית] <>\"\",IF(LeadData[סגירת \nתחזית] = \"מאי\",LeadData[תחזית \nמשוקללת],0),\"\"),\"\")","v":""},{"$f":"IFERROR(IF(LeadData[סגירת \nתחזית] <>\"\",IF(LeadData[סגירת \nתחזית] = \"יוני\",LeadData[תחזית \nמשוקללת],0),\"\"),\"\")","v":""},{"$f":"IFERROR(IF(LeadData[סגירת \nתחזית] <>\"\",IF(LeadData[סגירת \nתחזית] = \"יולי\",LeadData[תחזית \nמשוקללת],0),\"\"),\"\")","v":""},{"$f":"IFERROR(IF(LeadData[סגירת \nתחזית] <>\"\",IF(LeadData[סגירת \nתחזית] = \"אוגוסט\",LeadData[תחזית \nמשוקללת],0),\"\"),\"\")","v":""},{"$f":"IFERROR(IF(LeadData[סגירת \nתחזית] <>\"\",IF(LeadData[סגירת \nתחזית] = \"ספטמבר\",LeadData[תחזית \nמשוקללת],0),\"\"),\"\")","v":""},{"$f":"IFERROR(IF(LeadData[סגירת \nתחזית] <>\"\",IF(LeadData[סגירת \nתחזית] = \"אוקטובר\",LeadData[תחזית \nמשוקללת],0),\"\"),\"\")","v":""},{"$f":"IFERROR(IF(LeadData[סגירת \nתחזית] <>\"\",IF(LeadData[סגירת \nתחזית] = \"נובמבר\",LeadData[תחזית \nמשוקללת],0),\"\"),\"\")","v":""},{"$f":"IFERROR(IF(LeadData[סגירת \nתחזית] <>\"\",IF(LeadData[סגירת \nתחזית] = \"דצמבר\",LeadData[תחזית \nמשוקללת],0),\"\"),\"\")","v":""}]
[null,{"$f":"IFERROR(IF(AND(LeadData[שם הפניה] <> \"\", ROW(ForecastedSales[שם הפניה])<>LastEntry),LeadData[שם הפניה], \"\"),\"\")","v":""},{"$f":"IFERROR(IF(LeadData[סגירת \nתחזית] <>\"\",IF(LeadData[סגירת \nתחזית]= \"ינואר\",LeadData[תחזית \nמשוקללת],0),\"\"),\"\")","v":""},{"$f":"IFERROR(IF(LeadData[סגירת \nתחזית] <>\"\",IF(LeadData[סגירת \nתחזית] = \"פברואר\",LeadData[תחזית \nמשוקללת],0),\"\"),\"\")","v":""},{"$f":"IFERROR(IF(LeadData[סגירת \nתחזית] <>\"\",IF(LeadData[סגירת \nתחזית] = \"מרץ\",LeadData[תחזית \nמשוקללת],0),\"\"),\"\")","v":""},{"$f":"IFERROR(IF(LeadData[סגירת \nתחזית] <>\"\",IF(LeadData[סגירת \nתחזית] = \"אפריל\",LeadData[תחזית \nמשוקללת],0),\"\"),\"\")","v":""},{"$f":"IFERROR(IF(LeadData[סגירת \nתחזית] <>\"\",IF(LeadData[סגירת \nתחזית] = \"מאי\",LeadData[תחזית \nמשוקללת],0),\"\"),\"\")","v":""},{"$f":"IFERROR(IF(LeadData[סגירת \nתחזית] <>\"\",IF(LeadData[סגירת \nתחזית] = \"יוני\",LeadData[תחזית \nמשוקללת],0),\"\"),\"\")","v":""},{"$f":"IFERROR(IF(LeadData[סגירת \nתחזית] <>\"\",IF(LeadData[סגירת \nתחזית] = \"יולי\",LeadData[תחזית \nמשוקללת],0),\"\"),\"\")","v":""},{"$f":"IFERROR(IF(LeadData[סגירת \nתחזית] <>\"\",IF(LeadData[סגירת \nתחזית] = \"אוגוסט\",LeadData[תחזית \nמשוקללת],0),\"\"),\"\")","v":""},{"$f":"IFERROR(IF(LeadData[סגירת \nתחזית] <>\"\",IF(LeadData[סגירת \nתחזית] = \"ספטמבר\",LeadData[תחזית \nמשוקללת],0),\"\"),\"\")","v":""},{"$f":"IFERROR(IF(LeadData[סגירת \nתחזית] <>\"\",IF(LeadData[סגירת \nתחזית] = \"אוקטובר\",LeadData[תחזית \nמשוקללת],0),\"\"),\"\")","v":""},{"$f":"IFERROR(IF(LeadData[סגירת \nתחזית] <>\"\",IF(LeadData[סגירת \nתחזית] = \"נובמבר\",LeadData[תחזית \nמשוקללת],0),\"\"),\"\")","v":""},{"$f":"IFERROR(IF(LeadData[סגירת \nתחזית] <>\"\",IF(LeadData[סגירת \nתחזית] = \"דצמבר\",LeadData[תחזית \nמשוקללת],0),\"\"),\"\")","v":""}]
[null,{"$f":"IFERROR(IF(AND(LeadData[שם הפניה] <> \"\", ROW(ForecastedSales[שם הפניה])<>LastEntry),LeadData[שם הפניה], \"\"),\"\")","v":""},{"$f":"IFERROR(IF(LeadData[סגירת \nתחזית] <>\"\",IF(LeadData[סגירת \nתחזית]= \"ינואר\",LeadData[תחזית \nמשוקללת],0),\"\"),\"\")","v":""},{"$f":"IFERROR(IF(LeadData[סגירת \nתחזית] <>\"\",IF(LeadData[סגירת \nתחזית] = \"פברואר\",LeadData[תחזית \nמשוקללת],0),\"\"),\"\")","v":""},{"$f":"IFERROR(IF(LeadData[סגירת \nתחזית] <>\"\",IF(LeadData[סגירת \nתחזית] = \"מרץ\",LeadData[תחזית \nמשוקללת],0),\"\"),\"\")","v":""},{"$f":"IFERROR(IF(LeadData[סגירת \nתחזית] <>\"\",IF(LeadData[סגירת \nתחזית] = \"אפריל\",LeadData[תחזית \nמשוקללת],0),\"\"),\"\")","v":""},{"$f":"IFERROR(IF(LeadData[סגירת \nתחזית] <>\"\",IF(LeadData[סגירת \nתחזית] = \"מאי\",LeadData[תחזית \nמשוקללת],0),\"\"),\"\")","v":""},{"$f":"IFERROR(IF(LeadData[סגירת \nתחזית] <>\"\",IF(LeadData[סגירת \nתחזית] = \"יוני\",LeadData[תחזית \nמשוקללת],0),\"\"),\"\")","v":""},{"$f":"IFERROR(IF(LeadData[סגירת \nתחזית] <>\"\",IF(LeadData[סגירת \nתחזית] = \"יולי\",LeadData[תחזית \nמשוקללת],0),\"\"),\"\")","v":""},{"$f":"IFERROR(IF(LeadData[סגירת \nתחזית] <>\"\",IF(LeadData[סגירת \nתחזית] = \"אוגוסט\",LeadData[תחזית \nמשוקללת],0),\"\"),\"\")","v":""},{"$f":"IFERROR(IF(LeadData[סגירת \nתחזית] <>\"\",IF(LeadData[סגירת \nתחזית] = \"ספטמבר\",LeadData[תחזית \nמשוקללת],0),\"\"),\"\")","v":""},{"$f":"IFERROR(IF(LeadData[סגירת \nתחזית] <>\"\",IF(LeadData[סגירת \nתחזית] = \"אוקטובר\",LeadData[תחזית \nמשוקללת],0),\"\"),\"\")","v":""},{"$f":"IFERROR(IF(LeadData[סגירת \nתחזית] <>\"\",IF(LeadData[סגירת \nתחזית] = \"נובמבר\",LeadData[תחזית \nמשוקללת],0),\"\"),\"\")","v":""},{"$f":"IFERROR(IF(LeadData[סגירת \nתחזית] <>\"\",IF(LeadData[סגירת \nתחזית] = \"דצמבר\",LeadData[תחזית \nמשוקללת],0),\"\"),\"\")","v":""}]
[null,{"$f":"IFERROR(IF(AND(LeadData[שם הפניה] <> \"\", ROW(ForecastedSales[שם הפניה])<>LastEntry),LeadData[שם הפניה], \"\"),\"\")","v":""},{"$f":"IFERROR(IF(LeadData[סגירת \nתחזית] <>\"\",IF(LeadData[סגירת \nתחזית]= \"ינואר\",LeadData[תחזית \nמשוקללת],0),\"\"),\"\")","v":""},{"$f":"IFERROR(IF(LeadData[סגירת \nתחזית] <>\"\",IF(LeadData[סגירת \nתחזית] = \"פברואר\",LeadData[תחזית \nמשוקללת],0),\"\"),\"\")","v":""},{"$f":"IFERROR(IF(LeadData[סגירת \nתחזית] <>\"\",IF(LeadData[סגירת \nתחזית] = \"מרץ\",LeadData[תחזית \nמשוקללת],0),\"\"),\"\")","v":""},{"$f":"IFERROR(IF(LeadData[סגירת \nתחזית] <>\"\",IF(LeadData[סגירת \nתחזית] = \"אפריל\",LeadData[תחזית \nמשוקללת],0),\"\"),\"\")","v":""},{"$f":"IFERROR(IF(LeadData[סגירת \nתחזית] <>\"\",IF(LeadData[סגירת \nתחזית] = \"מאי\",LeadData[תחזית \nמשוקללת],0),\"\"),\"\")","v":""},{"$f":"IFERROR(IF(LeadData[סגירת \nתחזית] <>\"\",IF(LeadData[סגירת \nתחזית] = \"יוני\",LeadData[תחזית \nמשוקללת],0),\"\"),\"\")","v":""},{"$f":"IFERROR(IF(LeadData[סגירת \nתחזית] <>\"\",IF(LeadData[סגירת \nתחזית] = \"יולי\",LeadData[תחזית \nמשוקללת],0),\"\"),\"\")","v":""},{"$f":"IFERROR(IF(LeadData[סגירת \nתחזית] <>\"\",IF(LeadData[סגירת \nתחזית] = \"אוגוסט\",LeadData[תחזית \nמשוקללת],0),\"\"),\"\")","v":""},{"$f":"IFERROR(IF(LeadData[סגירת \nתחזית] <>\"\",IF(LeadData[סגירת \nתחזית] = \"ספטמבר\",LeadData[תחזית \nמשוקללת],0),\"\"),\"\")","v":""},{"$f":"IFERROR(IF(LeadData[סגירת \nתחזית] <>\"\",IF(LeadData[סגירת \nתחזית] = \"אוקטובר\",LeadData[תחזית \nמשוקללת],0),\"\"),\"\")","v":""},{"$f":"IFERROR(IF(LeadData[סגירת \nתחזית] <>\"\",IF(LeadData[סגירת \nתחזית] = \"נובמבר\",LeadData[תחזית \nמשוקללת],0),\"\"),\"\")","v":""},{"$f":"IFERROR(IF(LeadData[סגירת \nתחזית] <>\"\",IF(LeadData[סגירת \nתחזית] = \"דצמבר\",LeadData[תחזית \nמשוקללת],0),\"\"),\"\")","v":""}]
[null,{"$f":"IFERROR(IF(AND(LeadData[שם הפניה] <> \"\", ROW(ForecastedSales[שם הפניה])<>LastEntry),LeadData[שם הפניה], \"\"),\"\")","v":""},{"$f":"IFERROR(IF(LeadData[סגירת \nתחזית] <>\"\",IF(LeadData[סגירת \nתחזית]= \"ינואר\",LeadData[תחזית \nמשוקללת],0),\"\"),\"\")","v":""},{"$f":"IFERROR(IF(LeadData[סגירת \nתחזית] <>\"\",IF(LeadData[סגירת \nתחזית] = \"פברואר\",LeadData[תחזית \nמשוקללת],0),\"\"),\"\")","v":""},{"$f":"IFERROR(IF(LeadData[סגירת \nתחזית] <>\"\",IF(LeadData[סגירת \nתחזית] = \"מרץ\",LeadData[תחזית \nמשוקללת],0),\"\"),\"\")","v":""},{"$f":"IFERROR(IF(LeadData[סגירת \nתחזית] <>\"\",IF(LeadData[סגירת \nתחזית] = \"אפריל\",LeadData[תחזית \nמשוקללת],0),\"\"),\"\")","v":""},{"$f":"IFERROR(IF(LeadData[סגירת \nתחזית] <>\"\",IF(LeadData[סגירת \nתחזית] = \"מאי\",LeadData[תחזית \nמשוקללת],0),\"\"),\"\")","v":""},{"$f":"IFERROR(IF(LeadData[סגירת \nתחזית] <>\"\",IF(LeadData[סגירת \nתחזית] = \"יוני\",LeadData[תחזית \nמשוקללת],0),\"\"),\"\")","v":""},{"$f":"IFERROR(IF(LeadData[סגירת \nתחזית] <>\"\",IF(LeadData[סגירת \nתחזית] = \"יולי\",LeadData[תחזית \nמשוקללת],0),\"\"),\"\")","v":""},{"$f":"IFERROR(IF(LeadData[סגירת \nתחזית] <>\"\",IF(LeadData[סגירת \nתחזית] = \"אוגוסט\",LeadData[תחזית \nמשוקללת],0),\"\"),\"\")","v":""},{"$f":"IFERROR(IF(LeadData[סגירת \nתחזית] <>\"\",IF(LeadData[סגירת \nתחזית] = \"ספטמבר\",LeadData[תחזית \nמשוקללת],0),\"\"),\"\")","v":""},{"$f":"IFERROR(IF(LeadData[סגירת \nתחזית] <>\"\",IF(LeadData[סגירת \nתחזית] = \"אוקטובר\",LeadData[תחזית \nמשוקללת],0),\"\"),\"\")","v":""},{"$f":"IFERROR(IF(LeadData[סגירת \nתחזית] <>\"\",IF(LeadData[סגירת \nתחזית] = \"נובמבר\",LeadData[תחזית \nמשוקללת],0),\"\"),\"\")","v":""},{"$f":"IFERROR(IF(LeadData[סגירת \nתחזית] <>\"\",IF(LeadData[סגירת \nתחזית] = \"דצמבר\",LeadData[תחזית \nמשוקללת],0),\"\"),\"\")","v":""}]
[null,{"$f":"IFERROR(IF(AND(LeadData[שם הפניה] <> \"\", ROW(ForecastedSales[שם הפניה])<>LastEntry),LeadData[שם הפניה], \"\"),\"\")","v":""},{"$f":"IFERROR(IF(LeadData[סגירת \nתחזית] <>\"\",IF(LeadData[סגירת \nתחזית]= \"ינואר\",LeadData[תחזית \nמשוקללת],0),\"\"),\"\")","v":""},{"$f":"IFERROR(IF(LeadData[סגירת \nתחזית] <>\"\",IF(LeadData[סגירת \nתחזית] = \"פברואר\",LeadData[תחזית \nמשוקללת],0),\"\"),\"\")","v":""},{"$f":"IFERROR(IF(LeadData[סגירת \nתחזית] <>\"\",IF(LeadData[סגירת \nתחזית] = \"מרץ\",LeadData[תחזית \nמשוקללת],0),\"\"),\"\")","v":""},{"$f":"IFERROR(IF(LeadData[סגירת \nתחזית] <>\"\",IF(LeadData[סגירת \nתחזית] = \"אפריל\",LeadData[תחזית \nמשוקללת],0),\"\"),\"\")","v":""},{"$f":"IFERROR(IF(LeadData[סגירת \nתחזית] <>\"\",IF(LeadData[סגירת \nתחזית] = \"מאי\",LeadData[תחזית \nמשוקללת],0),\"\"),\"\")","v":""},{"$f":"IFERROR(IF(LeadData[סגירת \nתחזית] <>\"\",IF(LeadData[סגירת \nתחזית] = \"יוני\",LeadData[תחזית \nמשוקללת],0),\"\"),\"\")","v":""},{"$f":"IFERROR(IF(LeadData[סגירת \nתחזית] <>\"\",IF(LeadData[סגירת \nתחזית] = \"יולי\",LeadData[תחזית \nמשוקללת],0),\"\"),\"\")","v":""},{"$f":"IFERROR(IF(LeadData[סגירת \nתחזית] <>\"\",IF(LeadData[סגירת \nתחזית] = \"אוגוסט\",LeadData[תחזית \nמשוקללת],0),\"\"),\"\")","v":""},{"$f":"IFERROR(IF(LeadData[סגירת \nתחזית] <>\"\",IF(LeadData[סגירת \nתחזית] = \"ספטמבר\",LeadData[תחזית \nמשוקללת],0),\"\"),\"\")","v":""},{"$f":"IFERROR(IF(LeadData[סגירת \nתחזית] <>\"\",IF(LeadData[סגירת \nתחזית] = \"אוקטובר\",LeadData[תחזית \nמשוקללת],0),\"\"),\"\")","v":""},{"$f":"IFERROR(IF(LeadData[סגירת \nתחזית] <>\"\",IF(LeadData[סגירת \nתחזית] = \"נובמבר\",LeadData[תחזית \nמשוקללת],0),\"\"),\"\")","v":""},{"$f":"IFERROR(IF(LeadData[סגירת \nתחזית] <>\"\",IF(LeadData[סגירת \nתחזית] = \"דצמבר\",LeadData[תחזית \nמשוקללת],0),\"\"),\"\")","v":""}]
[null,{"$f":"IFERROR(IF(AND(LeadData[שם הפניה] <> \"\", ROW(ForecastedSales[שם הפניה])<>LastEntry),LeadData[שם הפניה], \"\"),\"\")","v":""},{"$f":"IFERROR(IF(LeadData[סגירת \nתחזית] <>\"\",IF(LeadData[סגירת \nתחזית]= \"ינואר\",LeadData[תחזית \nמשוקללת],0),\"\"),\"\")","v":""},{"$f":"IFERROR(IF(LeadData[סגירת \nתחזית] <>\"\",IF(LeadData[סגירת \nתחזית] = \"פברואר\",LeadData[תחזית \nמשוקללת],0),\"\"),\"\")","v":""},{"$f":"IFERROR(IF(LeadData[סגירת \nתחזית] <>\"\",IF(LeadData[סגירת \nתחזית] = \"מרץ\",LeadData[תחזית \nמשוקללת],0),\"\"),\"\")","v":""},{"$f":"IFERROR(IF(LeadData[סגירת \nתחזית] <>\"\",IF(LeadData[סגירת \nתחזית] = \"אפריל\",LeadData[תחזית \nמשוקללת],0),\"\"),\"\")","v":""},{"$f":"IFERROR(IF(LeadData[סגירת \nתחזית] <>\"\",IF(LeadData[סגירת \nתחזית] = \"מאי\",LeadData[תחזית \nמשוקללת],0),\"\"),\"\")","v":""},{"$f":"IFERROR(IF(LeadData[סגירת \nתחזית] <>\"\",IF(LeadData[סגירת \nתחזית] = \"יוני\",LeadData[תחזית \nמשוקללת],0),\"\"),\"\")","v":""},{"$f":"IFERROR(IF(LeadData[סגירת \nתחזית] <>\"\",IF(LeadData[סגירת \nתחזית] = \"יולי\",LeadData[תחזית \nמשוקללת],0),\"\"),\"\")","v":""},{"$f":"IFERROR(IF(LeadData[סגירת \nתחזית] <>\"\",IF(LeadData[סגירת \nתחזית] = \"אוגוסט\",LeadData[תחזית \nמשוקללת],0),\"\"),\"\")","v":""},{"$f":"IFERROR(IF(LeadData[סגירת \nתחזית] <>\"\",IF(LeadData[סגירת \nתחזית] = \"ספטמבר\",LeadData[תחזית \nמשוקללת],0),\"\"),\"\")","v":""},{"$f":"IFERROR(IF(LeadData[סגירת \nתחזית] <>\"\",IF(LeadData[סגירת \nתחזית] = \"אוקטובר\",LeadData[תחזית \nמשוקללת],0),\"\"),\"\")","v":""},{"$f":"IFERROR(IF(LeadData[סגירת \nתחזית] <>\"\",IF(LeadData[סגירת \nתחזית] = \"נובמבר\",LeadData[תחזית \nמשוקללת],0),\"\"),\"\")","v":""},{"$f":"IFERROR(IF(LeadData[סגירת \nתחזית] <>\"\",IF(LeadData[סגירת \nתחזית] = \"דצמבר\",LeadData[תחזית \nמשוקללת],0),\"\"),\"\")","v":""}]
[null,"סך הכל",{"$f":"SUBTOTAL(109,ForecastedSales[תחזית \nינואר])","v":{"v":270000,"d":"₪ 270,000"}},{"$f":"SUBTOTAL(109,ForecastedSales[תחזית \nפברואר])","v":{"v":20000,"d":"₪ 20,000"}},{"$f":"SUBTOTAL(109,ForecastedSales[תחזית \nמרץ])","v":{"v":20000,"d":"₪ 20,000"}},{"$f":"SUBTOTAL(109,ForecastedSales[תחזית \nאפריל])","v":{"v":0,"d":"₪ 0"}},{"$f":"SUBTOTAL(109,ForecastedSales[תחזית \nמאי])","v":{"v":0,"d":"₪ 0"}},{"$f":"SUBTOTAL(109,ForecastedSales[תחזית \nיוני])","v":{"v":0,"d":"₪ 0"}},{"$f":"SUBTOTAL(109,ForecastedSales[תחזית \nיולי])","v":{"v":0,"d":"₪ 0"}},{"$f":"SUBTOTAL(109,ForecastedSales[תחזית \nאוגוסט])","v":{"v":0,"d":"₪ 0"}},{"$f":"SUBTOTAL(109,ForecastedSales[תחזית \nספטמבר])","v":{"v":0,"d":"₪ 0"}},{"$f":"SUBTOTAL(109,ForecastedSales[תחזית \nאוקטובר])","v":{"v":0,"d":"₪ 0"}},{"$f":"SUBTOTAL(109,ForecastedSales[תחזית \nנובמבר])","v":{"v":0,"d":"₪ 0"}},{"$f":"SUBTOTAL(109,ForecastedSales[תחזית \nדצמבר])","v":{"v":0,"d":"₪ 0"}}]
[null,"סך מצטבר",{"$f":"C20","v":{"v":270000,"d":"₪ 270,000"}},{"$f":"C21+D20","v":{"v":290000,"d":"₪ 290,000"}},{"v":310000,"d":"₪ 310,000"},{"v":310000,"d":"₪ 310,000"},{"v":310000,"d":"₪ 310,000"},{"v":310000,"d":"₪ 310,000"},{"v":310000,"d":"₪ 310,000"},{"v":310000,"d":"₪ 310,000"},{"v":310000,"d":"₪ 310,000"},{"v":310000,"d":"₪ 310,000"},{"v":310000,"d":"₪ 310,000"},{"v":310000,"d":"₪ 310,000"}]

{"sheet":"תחזית משוקללת חודשית","index":2,"n_rows":3,"n_cols":2,"rows_kept":3}
[null,{"$f":"Company_Name","v":"שם החברה"}]
[null,"תחזית משוקללת חודשית"]
[null," "]